[Event "Late-Titled-Tuesday-Blitz-March-19-2024"]
[Site "Chess.com"]
[Date "2024.03.19"]
[Round "1"]
[White "simaopdias"]
[Black "BabageldiAnnaberdiyev"]
[Result "0-1"]
[WhiteElo "2272"]
[BlackElo "2627"]
[TimeControl "180+1"]
[EndTime "14:05:04 PDT"]
[Termination "BabageldiAnnaberdiyev won by resignation"]

1. e4 {[%clk 0:02:57.6]} 1... e6 {[%clk 0:03:00.9]} 2. d4 {[%clk 0:02:57.4]}
2... d5 {[%clk 0:03:01.5]} 3. exd5 {[%clk 0:02:57.9]} 3... exd5 {[%clk
0:03:01.4]} 4. Bd3 {[%clk 0:02:58.3]} 4... Bd6 {[%clk 0:03:01.2]} 5. Nf3 {[%clk
0:02:58.7]} 5... Nc6 {[%clk 0:03:01.6]} 6. O-O {[%clk 0:02:59.6]} 6... Bg4
{[%clk 0:03:00.6]} 7. c3 {[%clk 0:03:00.3]} 7... Nge7 {[%clk 0:02:59.2]} 8. Re1
{[%clk 0:03:01.2]} 8... Qd7 {[%clk 0:02:58.7]} 9. h3 {[%clk 0:03:02.1]} 9... Bh5
{[%clk 0:02:55.3]} 10. Nbd2 {[%clk 0:03:02.3]} 10... f6 {[%clk 0:02:54]} 11. Qc2
{[%clk 0:02:59.7]} 11... O-O-O {[%clk 0:02:47.8]} 12. b4 {[%clk 0:02:59.9]}
12... Bg6 {[%clk 0:02:46.3]} 13. a4 {[%clk 0:02:58.8]} 13... Bxd3 {[%clk
0:02:45.2]} 14. Qxd3 {[%clk 0:02:58.8]} 14... Qf5 {[%clk 0:02:45.7]} 15. Qxf5+
{[%clk 0:02:55.3]} 15... Nxf5 {[%clk 0:02:46.6]} 16. Nf1 {[%clk 0:02:54.5]}
16... h5 {[%clk 0:02:39.5]} 17. Ne3 {[%clk 0:02:53.5]} 17... Nce7 {[%clk
0:02:39.5]} 18. Nxf5 {[%clk 0:02:53]} 18... Nxf5 {[%clk 0:02:40.4]} 19. Bd2
{[%clk 0:02:49.7]} 19... Kd7 {[%clk 0:02:38.3]} 20. Re2 {[%clk 0:02:45.9]} 20...
g5 {[%clk 0:02:38.3]} 21. Nh2 {[%clk 0:02:38.2]} 21... g4 {[%clk 0:02:35.1]} 22.
Nf1 {[%clk 0:02:02.4]} 22... gxh3 {[%clk 0:02:34.1]} 23. gxh3 {[%clk 0:02:03.3]}
23... Rhg8+ {[%clk 0:02:29.1]} 24. Kh1 {[%clk 0:02:01.5]} 24... c6 {[%clk
0:02:18.3]} 25. Rae1 {[%clk 0:01:54.9]} 25... Rg7 {[%clk 0:02:10.7]} 26. Nh2
{[%clk 0:01:50.4]} 26... Bxh2 {[%clk 0:02:07.5]} 27. Kxh2 {[%clk 0:01:49.9]}
27... Nh4 {[%clk 0:02:08.2]} 28. Kh1 {[%clk 0:01:29.9]} 28... Nf3 {[%clk
0:01:59.9]} 29. Rd1 {[%clk 0:01:22]} 29... Rdg8 {[%clk 0:01:58.5]} 30. Ree1
{[%clk 0:01:18]} 30... Rg2 {[%clk 0:01:45.3]} 31. Bf4 {[%clk 0:01:18.1]} 31...
Nxe1 {[%clk 0:01:43.2]} 32. Rxe1 {[%clk 0:01:17.8]} 32... Rxf2 {[%clk
0:01:43.7]} 33. Bh2 {[%clk 0:01:05.1]} 33... Rc2 {[%clk 0:01:40.1]} 0-1

[Event "Late-Titled-Tuesday-Blitz-March-19-2024"]
[Site "Chess.com"]
[Date "2024.03.19"]
[Round "1"]
[White "AntonovaNadezhda"]
[Black "Shahdad2007"]
[Result "0-1"]
[WhiteElo "2204"]
[BlackElo "2608"]
[TimeControl "180+1"]
[EndTime "14:05:06 PDT"]
[Termination "Shahdad2007 won by resignation"]

1. Nf3 {[%clk 0:02:59.2]} 1... Nf6 {[%clk 0:03:00.2]} 2. b3 {[%clk 0:02:52.6]}
2... g6 {[%clk 0:02:58.9]} 3. Bb2 {[%clk 0:02:53.1]} 3... Bg7 {[%clk 0:02:59.6]}
4. g3 {[%clk 0:02:52.8]} 4... b5 {[%clk 0:02:58.7]} 5. Bg2 {[%clk 0:02:52.5]}
5... Bb7 {[%clk 0:02:59.3]} 6. O-O {[%clk 0:02:52.8]} 6... O-O {[%clk
0:02:59.4]} 7. Re1 {[%clk 0:02:50]} 7... c5 {[%clk 0:02:59.6]} 8. c4 {[%clk
0:02:47.6]} 8... a6 {[%clk 0:02:58]} 9. e3 {[%clk 0:02:44.1]} 9... Nc6 {[%clk
0:02:56.1]} 10. d4 {[%clk 0:02:44.3]} 10... cxd4 {[%clk 0:02:55.1]} 11. exd4
{[%clk 0:02:44.2]} 11... bxc4 {[%clk 0:02:55.2]} 12. d5 {[%clk 0:02:40.9]} 12...
Na5 {[%clk 0:02:44.7]} 13. Nc3 {[%clk 0:02:29.3]} 13... Nxd5 {[%clk 0:02:36.5]}
14. Nxd5 {[%clk 0:02:24.7]} 14... Bxb2 {[%clk 0:02:36.4]} 15. Nxe7+ {[%clk
0:02:21.1]} 15... Kh8 {[%clk 0:02:36]} 16. Rb1 {[%clk 0:02:20.7]} 16... Bf6
{[%clk 0:02:27.2]} 17. Nd5 {[%clk 0:02:19.7]} 17... Bxd5 {[%clk 0:02:20.6]} 18.
Qxd5 {[%clk 0:02:19.8]} 18... cxb3 {[%clk 0:02:19.4]} 19. axb3 {[%clk
0:02:14.7]} 19... Nc6 {[%clk 0:02:19.4]} 20. Rbd1 {[%clk 0:02:10]} 20... Ra7
{[%clk 0:02:17.1]} 21. Nd2 {[%clk 0:02:05.9]} 21... Qb6 {[%clk 0:02:12.4]} 22.
Rb1 {[%clk 0:01:52]} 22... Qd4 {[%clk 0:02:07.6]} 23. Nc4 {[%clk 0:01:46.3]}
23... Qxd5 {[%clk 0:02:00]} 24. Bxd5 {[%clk 0:01:47.2]} 24... Nb4 {[%clk
0:02:00.3]} 25. Bf3 {[%clk 0:01:42.6]} 25... d5 {[%clk 0:01:59]} 26. Na5 {[%clk
0:01:41.6]} 26... Bc3 {[%clk 0:01:54.3]} 27. Red1 {[%clk 0:01:40.2]} 27... d4
{[%clk 0:01:53.3]} 28. Nc6 {[%clk 0:01:36.6]} 28... Nxc6 {[%clk 0:01:53.4]} 29.
Bxc6 {[%clk 0:01:36.3]} 29... Rc8 {[%clk 0:01:53.4]} 30. Bd5 {[%clk 0:01:35.3]}
30... Rd7 {[%clk 0:01:51.5]} 31. Bc4 {[%clk 0:01:34.4]} 31... a5 {[%clk
0:01:51.9]} 32. Bd3 {[%clk 0:01:28.9]} 32... Rb8 {[%clk 0:01:45.5]} 33. Bc4
{[%clk 0:01:25.8]} 33... Kg7 {[%clk 0:01:44.9]} 34. Rd3 {[%clk 0:01:24.7]} 34...
Rc7 {[%clk 0:01:44.3]} 35. Bd5 {[%clk 0:01:20.3]} 35... Rc5 {[%clk 0:01:43.9]}
36. Bf3 {[%clk 0:01:16.4]} 36... a4 {[%clk 0:01:43.9]} 37. Bd1 {[%clk
0:01:13.5]} 37... a3 {[%clk 0:01:43.5]} 38. b4 {[%clk 0:01:11.2]} 38... a2
{[%clk 0:01:43.5]} 0-1

[Event "Late-Titled-Tuesday-Blitz-March-19-2024"]
[Site "Chess.com"]
[Date "2024.03.19"]
[Round "1"]
[White "Sanan_Sjugirov"]
[Black "xakevicius91"]
[Result "1-0"]
[WhiteElo "3010"]
[BlackElo "2544"]
[TimeControl "180+1"]
[EndTime "14:05:08 PDT"]
[Termination "Sanan_Sjugirov won by resignation"]

1. e4 {[%clk 0:03:00.9]} 1... c5 {[%clk 0:02:59.7]} 2. Nf3 {[%clk 0:03:00.6]}
2... e6 {[%clk 0:02:59.8]} 3. d3 {[%clk 0:03:00.8]} 3... Nc6 {[%clk 0:02:58.2]}
4. g3 {[%clk 0:03:01.4]} 4... Nf6 {[%clk 0:02:56]} 5. Bg2 {[%clk 0:03:01.8]}
5... d6 {[%clk 0:02:42]} 6. O-O {[%clk 0:03:01.5]} 6... Be7 {[%clk 0:02:42]} 7.
c3 {[%clk 0:03:01.6]} 7... O-O {[%clk 0:02:38.7]} 8. Re1 {[%clk 0:03:02]} 8...
Bd7 {[%clk 0:02:36.7]} 9. d4 {[%clk 0:03:02]} 9... cxd4 {[%clk 0:02:37]} 10.
cxd4 {[%clk 0:03:02.9]} 10... d5 {[%clk 0:02:37.4]} 11. e5 {[%clk 0:03:03.2]}
11... Ne4 {[%clk 0:02:37.9]} 12. Nbd2 {[%clk 0:02:58.1]} 12... Nxd2 {[%clk
0:02:34.1]} 13. Bxd2 {[%clk 0:02:59]} 13... Qb6 {[%clk 0:02:33.5]} 14. Bc3
{[%clk 0:02:58.1]} 14... a5 {[%clk 0:02:28.9]} 15. a3 {[%clk 0:02:57.4]} 15...
Rac8 {[%clk 0:02:24.8]} 16. h4 {[%clk 0:02:57.7]} 16... h6 {[%clk 0:02:24.6]}
17. Bf1 {[%clk 0:02:54.5]} 17... Na7 {[%clk 0:02:23.1]} 18. Rc1 {[%clk
0:02:44.2]} 18... Bb5 {[%clk 0:02:04.5]} 19. Bh3 {[%clk 0:02:43.9]} 19... Bd7
{[%clk 0:01:43.8]} 20. Qd3 {[%clk 0:02:40.2]} 20... Nb5 {[%clk 0:01:38.7]} 21.
Bd2 {[%clk 0:02:40.1]} 21... Rxc1 {[%clk 0:01:39.3]} 22. Rxc1 {[%clk 0:02:40.8]}
22... Rc8 {[%clk 0:01:38.9]} 23. Rxc8+ {[%clk 0:02:36.3]} 23... Bxc8 {[%clk
0:01:39.8]} 24. Bf1 {[%clk 0:02:35.1]} 24... Bd7 {[%clk 0:01:38]} 25. Be2 {[%clk
0:02:28.6]} 25... Na7 {[%clk 0:01:30.4]} 26. Qc3 {[%clk 0:02:24.4]} 26... Nc6
{[%clk 0:01:20.2]} 27. Bd3 {[%clk 0:02:22.2]} 27... Be8 {[%clk 0:01:16.2]} 28.
Bc2 {[%clk 0:02:21.4]} 28... Na7 {[%clk 0:00:53.1]} 29. Qd3 {[%clk 0:02:20]}
29... f5 {[%clk 0:00:44.1]} 30. exf6 {[%clk 0:02:19.8]} 30... Bxf6 {[%clk
0:00:44.3]} 31. b4 {[%clk 0:02:14.9]} 31... axb4 {[%clk 0:00:42.1]} 32. Qh7+
{[%clk 0:02:13.2]} 32... Kf7 {[%clk 0:00:37.6]} 33. Bxb4 {[%clk 0:02:14.1]} 1-0

[Event "Late-Titled-Tuesday-Blitz-March-19-2024"]
[Site "Chess.com"]
[Date "2024.03.19"]
[Round "1"]
[White "ArmanGhevondyanchess"]
[Black "expii"]
[Result "1-0"]
[WhiteElo "2602"]
[BlackElo "2191"]
[TimeControl "180+1"]
[EndTime "14:05:12 PDT"]
[Termination "ArmanGhevondyanchess won by resignation"]

1. Nf3 {[%clk 0:03:00.9]} 1... d5 {[%clk 0:02:58.4]} 2. g3 {[%clk 0:02:58.9]}
2... c5 {[%clk 0:02:57.7]} 3. Bg2 {[%clk 0:02:58.1]} 3... Nf6 {[%clk 0:02:54.5]}
4. O-O {[%clk 0:02:56.6]} 4... e6 {[%clk 0:02:50]} 5. d4 {[%clk 0:02:56.4]} 5...
c4 {[%clk 0:02:39.5]} 6. b3 {[%clk 0:02:55.7]} 6... b5 {[%clk 0:02:36.1]} 7. a4
{[%clk 0:02:53.7]} 7... cxb3 {[%clk 0:02:31]} 8. axb5 {[%clk 0:02:50.3]} 8...
bxc2 {[%clk 0:02:05.3]} 9. Qxc2 {[%clk 0:02:49]} 9... Bd7 {[%clk 0:01:58.1]} 10.
Nc3 {[%clk 0:02:41.5]} 10... Be7 {[%clk 0:01:56.5]} 11. Ne5 {[%clk 0:02:16.6]}
11... O-O {[%clk 0:01:44.1]} 12. e4 {[%clk 0:02:16.4]} 12... a6 {[%clk
0:01:24.2]} 13. exd5 {[%clk 0:02:11.3]} 13... exd5 {[%clk 0:01:20.7]} 14. Nxd5
{[%clk 0:02:05.4]} 14... Nxd5 {[%clk 0:01:21.6]} 15. Bxd5 {[%clk 0:02:03]} 15...
Ra7 {[%clk 0:01:11.8]} 16. Qb3 {[%clk 0:01:35.3]} 16... Be6 {[%clk 0:00:46]} 17.
Bxe6 {[%clk 0:01:34.4]} 17... fxe6 {[%clk 0:00:25.4]} 18. Qxe6+ {[%clk
0:01:33.9]} 18... Kh8 {[%clk 0:00:26.3]} 19. Nf7+ {[%clk 0:01:27.3]} 19... Rxf7
{[%clk 0:00:26.3]} 20. Qxf7 {[%clk 0:01:28.2]} 1-0

[Event "Late-Titled-Tuesday-Blitz-March-19-2024"]
[Site "Chess.com"]
[Date "2024.03.19"]
[Round "1"]
[White "Mops_2004"]
[Black "Smiechu"]
[Result "1-0"]
[WhiteElo "2746"]
[BlackElo "2428"]
[TimeControl "180+1"]
[EndTime "14:05:20 PDT"]
[Termination "Mops_2004 won by resignation"]

1. e4 {[%clk 0:03:00.9]} 1... c5 {[%clk 0:02:59.5]} 2. Nf3 {[%clk 0:03:00.8]}
2... g6 {[%clk 0:02:59.9]} 3. c4 {[%clk 0:03:00.2]} 3... Nc6 {[%clk 0:02:59.2]}
4. d4 {[%clk 0:03:00.7]} 4... cxd4 {[%clk 0:02:59.3]} 5. Nxd4 {[%clk 0:03:01.6]}
5... Nf6 {[%clk 0:02:59.3]} 6. Nc3 {[%clk 0:03:01.5]} 6... Nxd4 {[%clk
0:02:59.4]} 7. Qxd4 {[%clk 0:03:02.4]} 7... d6 {[%clk 0:02:59.8]} 8. Be2 {[%clk
0:03:02]} 8... Bg7 {[%clk 0:02:59.8]} 9. Be3 {[%clk 0:03:02.6]} 9... O-O {[%clk
0:03:00.1]} 10. Qd3 {[%clk 0:03:03.3]} 10... Qa5 {[%clk 0:02:57.5]} 11. O-O
{[%clk 0:03:02.8]} 11... Be6 {[%clk 0:02:57.6]} 12. Bd4 {[%clk 0:03:00.9]} 12...
Rfc8 {[%clk 0:02:54.9]} 13. b3 {[%clk 0:02:55.9]} 13... a6 {[%clk 0:02:51.7]}
14. f4 {[%clk 0:02:43.1]} 14... Bd7 {[%clk 0:02:30.5]} 15. e5 {[%clk 0:02:36.5]}
15... Bf5 {[%clk 0:02:23.2]} 16. Qe3 {[%clk 0:02:21.7]} 16... dxe5 {[%clk
0:01:50.5]} 17. fxe5 {[%clk 0:02:21.5]} 17... Ng4 {[%clk 0:01:49.2]} 18. Bxg4
{[%clk 0:02:18.1]} 18... Bxg4 {[%clk 0:01:49.4]} 19. Nd5 {[%clk 0:02:09]} 19...
Re8 {[%clk 0:01:44.4]} 20. Bb6 {[%clk 0:02:03.8]} 20... Qa3 {[%clk 0:01:31.8]}
21. Nc7 {[%clk 0:01:33.4]} 21... Rac8 {[%clk 0:01:12.8]} 22. Nxe8 {[%clk
0:01:24.9]} 22... Rxe8 {[%clk 0:01:13.7]} 23. Rf2 {[%clk 0:01:15.9]} 23... Be6
{[%clk 0:00:58.4]} 24. h3 {[%clk 0:01:07.3]} 24... Qb4 {[%clk 0:00:57.9]} 25. a3
{[%clk 0:01:06.7]} 25... Bh6 {[%clk 0:00:45.3]} 26. axb4 {[%clk 0:01:05.6]}
26... Bxe3 {[%clk 0:00:44.1]} 27. Bxe3 {[%clk 0:01:06.5]} 1-0

[Event "Late-Titled-Tuesday-Blitz-March-19-2024"]
[Site "Chess.com"]
[Date "2024.03.19"]
[Round "1"]
[White "malakismayil"]
[Black "Sargsyan_Shant"]
[Result "0-1"]
[WhiteElo "2525"]
[BlackElo "2930"]
[TimeControl "180+1"]
[EndTime "14:05:29 PDT"]
[Termination "Sargsyan_Shant won on time"]

1. e4 {[%clk 0:02:55.6]} 1... g6 {[%clk 0:03:00.6]} 2. d4 {[%clk 0:02:54.9]}
2... Nf6 {[%clk 0:03:01.1]} 3. Nc3 {[%clk 0:02:55.6]} 3... d5 {[%clk 0:03:01.3]}
4. e5 {[%clk 0:02:52.9]} 4... Ne4 {[%clk 0:03:02]} 5. Nxe4 {[%clk 0:02:45.9]}
5... dxe4 {[%clk 0:03:02.9]} 6. Ne2 {[%clk 0:02:46.1]} 6... Bg7 {[%clk
0:03:02.6]} 7. Ng3 {[%clk 0:02:43.4]} 7... c5 {[%clk 0:03:03.1]} 8. Bb5+ {[%clk
0:02:38.1]} 8... Bd7 {[%clk 0:02:54.2]} 9. Bxd7+ {[%clk 0:02:36.4]} 9... Qxd7
{[%clk 0:02:54.8]} 10. c3 {[%clk 0:02:32.6]} 10... cxd4 {[%clk 0:02:52.2]} 11.
cxd4 {[%clk 0:02:33.5]} 11... Nc6 {[%clk 0:02:52.6]} 12. Be3 {[%clk 0:02:33.6]}
12... Rd8 {[%clk 0:02:50.1]} 13. Nxe4 {[%clk 0:02:24.3]} 13... Nxd4 {[%clk
0:02:50]} 14. Nd6+ {[%clk 0:02:03.5]} 14... exd6 {[%clk 0:02:47.2]} 15. Qxd4
{[%clk 0:02:03.7]} 15... Bxe5 {[%clk 0:02:42.9]} 16. Qxa7 {[%clk 0:02:03.2]}
16... Bxb2 {[%clk 0:02:20]} 17. Rb1 {[%clk 0:02:03.2]} 17... Qb5 {[%clk
0:02:16.3]} 18. Qb6 {[%clk 0:01:30.8]} 18... Bc3+ {[%clk 0:02:12.9]} 19. Kd1
{[%clk 0:01:27.4]} 19... Qd3+ {[%clk 0:02:09.3]} 20. Kc1 {[%clk 0:01:23.5]}
20... O-O {[%clk 0:02:08.4]} 21. Rd1 {[%clk 0:01:13.4]} 21... Qf5 {[%clk
0:02:05.6]} 22. Rb5 {[%clk 0:01:05.5]} 22... d5 {[%clk 0:02:00.9]} 23. Qxb7
{[%clk 0:00:54.1]} 23... Rc8 {[%clk 0:02:00.7]} 24. Qxd5 {[%clk 0:00:15.1]}
24... Bd4+ {[%clk 0:01:55.6]} 25. Kd2 {[%clk 0:00:12.4]} 25... Bxe3+ {[%clk
0:01:56]} 26. Kxe3 {[%clk 0:00:02.9]} 26... Rfe8+ {[%clk 0:01:56.2]} 27. Kd4
{[%clk 0:00:01.6]} 27... Qc2 {[%clk 0:01:50.6]} 0-1

[Event "Late-Titled-Tuesday-Blitz-March-19-2024"]
[Site "Chess.com"]
[Date "2024.03.19"]
[Round "1"]
[White "Thjop"]
[Black "Cluke86"]
[Result "1-0"]
[WhiteElo "2653"]
[BlackElo "2317"]
[TimeControl "180+1"]
[EndTime "14:05:30 PDT"]
[Termination "Thjop won by resignation"]

1. d4 {[%clk 0:03:00.9]} 1... Nf6 {[%clk 0:02:58.7]} 2. g3 {[%clk 0:03:00.8]}
2... d6 {[%clk 0:02:57.9]} 3. Bg2 {[%clk 0:03:00.9]} 3... g6 {[%clk 0:02:57.8]}
4. e4 {[%clk 0:03:01.5]} 4... e5 {[%clk 0:02:54.8]} 5. Ne2 {[%clk 0:03:00.9]}
5... Bg7 {[%clk 0:02:53.5]} 6. h3 {[%clk 0:03:00.9]} 6... c6 {[%clk 0:02:52.8]}
7. Nbc3 {[%clk 0:03:00.6]} 7... Nbd7 {[%clk 0:02:52.1]} 8. O-O {[%clk
0:03:00.2]} 8... O-O {[%clk 0:02:50.5]} 9. a4 {[%clk 0:02:58.1]} 9... a5 {[%clk
0:02:46.8]} 10. Re1 {[%clk 0:02:57.7]} 10... Re8 {[%clk 0:02:43.2]} 11. Be3
{[%clk 0:02:56.5]} 11... Qc7 {[%clk 0:02:38.1]} 12. Qd2 {[%clk 0:02:56.5]} 12...
exd4 {[%clk 0:02:37.1]} 13. Bxd4 {[%clk 0:02:54.6]} 13... Nc5 {[%clk 0:02:31.4]}
14. Bxc5 {[%clk 0:02:53.1]} 14... dxc5 {[%clk 0:02:30.9]} 15. Rad1 {[%clk
0:02:53.5]} 15... Be6 {[%clk 0:02:28.8]} 16. Qd6 {[%clk 0:02:48.5]} 16... Qxd6
{[%clk 0:02:27.4]} 17. Rxd6 {[%clk 0:02:49.4]} 17... Rad8 {[%clk 0:02:26.4]} 18.
Red1 {[%clk 0:02:49.4]} 18... Rxd6 {[%clk 0:02:25.5]} 19. Rxd6 {[%clk
0:02:49.1]} 19... Kf8 {[%clk 0:02:22.5]} 20. f4 {[%clk 0:02:48.1]} 20... Ke7
{[%clk 0:02:18.4]} 21. Rd2 {[%clk 0:02:43.2]} 21... Rd8 {[%clk 0:02:16]} 22.
Rxd8 {[%clk 0:02:42.9]} 22... Kxd8 {[%clk 0:02:16.9]} 23. Kf2 {[%clk 0:02:41.6]}
23... Bc4 {[%clk 0:02:09]} 24. b3 {[%clk 0:02:39.2]} 24... Bxe2 {[%clk
0:01:55.7]} 25. Nxe2 {[%clk 0:02:40.1]} 25... Kc7 {[%clk 0:01:49.8]} 26. Ke3
{[%clk 0:02:40]} 26... b5 {[%clk 0:01:47.7]} 27. g4 {[%clk 0:02:37.7]} 27... Nd7
{[%clk 0:01:41.1]} 28. e5 {[%clk 0:02:36.1]} 28... Nb6 {[%clk 0:01:39.5]} 29.
Nc3 {[%clk 0:02:30.9]} 29... b4 {[%clk 0:01:23.7]} 30. Ne4 {[%clk 0:02:29]}
30... c4 {[%clk 0:01:23.4]} 31. Ng5 {[%clk 0:02:28.2]} 31... cxb3 {[%clk
0:01:18.4]} 32. cxb3 {[%clk 0:02:28.8]} 32... c5 {[%clk 0:01:15.1]} 33. Bf1
{[%clk 0:02:28.2]} 33... Nd5+ {[%clk 0:00:47.7]} 34. Kf3 {[%clk 0:02:25.4]}
34... Bh6 {[%clk 0:00:40.3]} 35. Nxf7 {[%clk 0:02:15.6]} 35... Bxf4 {[%clk
0:00:39.1]} 36. Bc4 {[%clk 0:02:15.7]} 36... Nb6 {[%clk 0:00:21.6]} 37. Kxf4
{[%clk 0:02:08.3]} 37... Nxc4 {[%clk 0:00:22]} 38. bxc4 {[%clk 0:02:08.4]} 38...
b3 {[%clk 0:00:22.6]} 39. Nd6 {[%clk 0:02:07.3]} 39... b2 {[%clk 0:00:20.4]} 40.
Nb5+ {[%clk 0:02:07]} 40... Kd7 {[%clk 0:00:19.1]} 41. Nc3 {[%clk 0:02:07.6]}
41... Ke6 {[%clk 0:00:18.9]} 42. Ke4 {[%clk 0:02:07.1]} 42... g5 {[%clk
0:00:16.9]} 43. Nb1 {[%clk 0:02:06.7]} 1-0

[Event "Late-Titled-Tuesday-Blitz-March-19-2024"]
[Site "Chess.com"]
[Date "2024.03.19"]
[Round "1"]
[White "DamianoLew95"]
[Black "NovakRatko"]
[Result "1-0"]
[WhiteElo "2728"]
[BlackElo "2411"]
[TimeControl "180+1"]
[EndTime "14:05:31 PDT"]
[Termination "DamianoLew95 won by resignation"]

1. e4 {[%clk 0:03:00.9]} 1... d5 {[%clk 0:01:52.1]} 2. d3 {[%clk 0:02:56.6]}
2... dxe4 {[%clk 0:01:47.3]} 3. dxe4 {[%clk 0:02:57.5]} 3... Qxd1+ {[%clk
0:01:47.3]} 4. Kxd1 {[%clk 0:02:58.4]} 4... f5 {[%clk 0:01:47.8]} 5. Nc3 {[%clk
0:02:47]} 5... fxe4 {[%clk 0:01:47.5]} 6. Nxe4 {[%clk 0:02:46.5]} 6... Nf6
{[%clk 0:00:40.6]} 7. Ng3 {[%clk 0:02:45.5]} 7... e5 {[%clk 0:00:39.2]} 8. Bd3
{[%clk 0:02:40.4]} 8... Nc6 {[%clk 0:00:37.3]} 9. c3 {[%clk 0:02:30.3]} 9... Be6
{[%clk 0:00:37.3]} 10. Kc2 {[%clk 0:02:28.7]} 10... O-O-O {[%clk 0:00:37.4]} 11.
f3 {[%clk 0:02:21.5]} 11... Bc5 {[%clk 0:00:36.3]} 12. Bf5 {[%clk 0:02:10.5]}
12... Bxf5+ {[%clk 0:00:34.2]} 13. Nxf5 {[%clk 0:02:11.4]} 13... g6 {[%clk
0:00:33.5]} 14. Ng3 {[%clk 0:02:11.4]} 14... h5 {[%clk 0:00:32.5]} 15. Bg5
{[%clk 0:02:09.5]} 15... Rhf8 {[%clk 0:00:32.4]} 16. Bxf6 {[%clk 0:02:09.3]}
16... Rxf6 {[%clk 0:00:32.2]} 17. Ne4 {[%clk 0:02:09.6]} 17... Be7 {[%clk
0:00:28.9]} 18. Nxf6 {[%clk 0:02:09]} 18... Bxf6 {[%clk 0:00:29.8]} 19. Rd1
{[%clk 0:02:08.9]} 19... Re8 {[%clk 0:00:26.7]} 20. Nh3 {[%clk 0:02:08.7]} 20...
e4 {[%clk 0:00:26.7]} 21. fxe4 {[%clk 0:02:07.5]} 21... Rxe4 {[%clk 0:00:25.6]}
22. Rhe1 {[%clk 0:02:02.8]} 22... Rg4 {[%clk 0:00:23.7]} 23. g3 {[%clk
0:01:54.9]} 23... b6 {[%clk 0:00:23.2]} 24. Re6 {[%clk 0:01:40.7]} 24... Rc4
{[%clk 0:00:12.9]} 25. Rxf6 {[%clk 0:01:38.7]} 25... b5 {[%clk 0:00:11.1]} 26.
Nf4 {[%clk 0:01:36]} 26... Nb4+ {[%clk 0:00:10.9]} 27. Kb1 {[%clk 0:01:32.9]}
1-0